[Event "Reykjavik Open 2025"]
[Site "Reykjavik"]
[Date "2025.04.10"]
[Round "2.6"]
[White "George Samir, David"]
[Black "Muradli, Mahammad"]
[Result "0-1"]
[Annotator "TA"]
[ECO "E11"]
[WhiteElo "2303"]
[BlackElo "2588"]
[PlyCount "58"]
[EventDate "2025.04.09"]
[EventType "swiss"]
[EventCountry "ISL"]
[SourceTitle "playchess.com"]
[Source "ChessBase"]
[SourceQuality "1"]
[TimeControl "40/5400+30:1800+30"]

{[%evp 9,58,0,0,0,16,16,16,16,14,16,29,1,8,3,0,0,7,7,0,0,37,0,0,0,0,0,0,-56,-61,-179,-194,-171,-144,-205,-155,-199,-191,-219,-215,-197,-176,-270,-278,-454,-453,-445,-437,-439,-440,-443,-433]} 1. c4 {[%emt 0:00:05]} e6 {[%emt 0:10:26]} 2. Nf3 {[%emt 0:00:11]} d5 {[%emt 0:00:16]} 3. d4 {[%emt 0:00:05]} Nf6 {[%emt 0:00:08]} 4. g3 {[%emt 0:00:04]} Bb4+ {[%emt 0:00:32]} 5. Bd2 {[%emt 0:00:06]} Be7 {[%emt 0:00:07]} 6. Bg2 {[%emt 0:00:05] E11: Bogo-Indian.} Nbd7 {[%emt 0:00:33]} 7. O-O {[%emt 0:00:16]} c6 {[%emt 0:00:06]} 8. Qc2 {[%emt 0:00:20] The position is equal.} b6 {[%emt 0:00:51]} 9. Bf4 {[%emt 0:02:15] 9.Bf4 is better than 9.Rd1.} Ba6 {[%emt 0:01:13]} 10. Ne5 {[%emt 0:00:47]} Nxe5 {[%emt 0:06:46]} 11. dxe5 {[%emt 0:00:07]} Nd7 {[%emt 0:00:08]} 12. cxd5 {[%emt 0:00:08]} cxd5 {[%emt 0:00:08]} 13. Rd1 {[%emt 0:00:04]} Rc8 {[%emt 0:01:23]} 14. Nc3 {[%emt 0:01:25]} b5 {[%emt 0:02:57][%cal Bb6b5,Bb5b4,Bb4c3,Bc3c2][%mdl 32]} 15. e4 {[%emt 0:11:42]} (15. a3 $5) 15... b4 {[%emt 0:10:25]} 16. Qa4 $1 {[%emt 0:19:37] Counterplay Black} (16. exd5 bxc3 17. b4 exd5 (17... Bxb4 18. dxe6 fxe6 19. Qa4 $11) 18. Bxd5 Bc4 $19 (18... Bxb4 19. Bxf7+ Kxf7 20. Qf5+ Kg8 21. Qe6+ Kf8 22. Qxa6 $16)) 16... bxc3 {[%emt 0:00:19]} 17. Qxa6 {[%emt 0:00:17] [#] and bxc3 would now be decisive} c2 {[%emt 0:00:09]} (17... cxb2 18. Rab1 Nc5 19. Qb5+ (19. Qxa7 $2 Ra8 $19) 19... Qd7 20. Qxd7+ (20. Rxb2 Qxb5 21. Rxb5 Nxe4 $11) (20. Qxb2 Na4 $14) 20... Nxd7 21. exd5 $16) 18. Rdc1 {[%emt 0:01:33]} ({Better is} 18. Rd4 $1 $11 Bc5 (18... g5 19. Bc1 $11) 19. Rd2) 18... d4 $15 {[%emt 0:00:07]} 19. Qa4 {[%emt 0:02:28]} (19. Qd3 $15) 19... d3 $19 {[%emt 0:01:28]} 20. Qb5 {[%emt 0:06:05]} g5 $146 {[%emt 0:00:25][%mdl 2048] Black is really pushing.} (20... Qb6 21. Qxd3 Qxb2 22. Bf1 Ba3 23. Re1 Qc3 24. Qxc3 Rxc3 25. Re3 Rxe3 26. Bxe3 Nxe5 {0-1 Mahjoob,M (2529)-Quesada Perez,Y (2614) Olympiad-39 Khanty-Mansiysk 2010 (8.3)}) 21. Be3 {[%emt 0:17:22]} (21. Bd2 $17 {is a better defense.} Qb6 22. Qxd3 Qxb2 (22... Nxe5 $2 23. Qe3 $19) 23. Bf1 Nxe5 (23... Qxe5 24. Rxc2 Rxc2 25. Qxc2 $14) 24. Qb5+ Qxb5 25. Bxb5+ Kf8 26. Ba6) 21... O-O {[%emt 0:00:31]} 22. Qxd3 {[%emt 0:02:42] Black has space advantage and is better} Nxe5 {[%emt 0:00:09]} 23. Qe2 {[%emt 0:00:12]} Qd3 {[%emt 0:01:36]} 24. Qh5 {[%emt 0:00:08]} Qb5 {[%emt 0:07:53] and ...g4 would now be decisive} 25. Bf1 {[%emt 0:03:29]} (25. a4 $142 Qxb2 26. Bxg5 Bxg5 27. Qxg5+ Ng6 28. h4) 25... Qxb2 {[%emt 0:00:13]} 26. Bxg5 $2 {[%emt 0:00:04] [#]} (26. a3) 26... Nf3+ $1 {[%emt 0:00:57][%mdl 512] Black is clearly winning.} 27. Qxf3 {[%emt 0:00:36]} Bxg5 {[%emt 0:00:03]} 28. Qg4 {[%emt 0:00:06] White is weak on the dark squares} Qg7 {[%emt 0:00:11]} 29. f4 {[%emt 0:00:05]} Be7 {[%emt 0:00:40] Weighted Error Value: White=0.37/Black=0.09 (flawless)   Mistake:       	White=5     	---        Inaccurate:     	White=2     	Black=1      OK:         	White=6     	Black=9      Best:        	White=4     	Black=6      Strong:       	White=1     	---        Brilliant:      	---       	Black=1} ({Weaker is} 29... Qd4+ 30. Kh1 $11) 0-1

[Event "Reykjavik Open 2025"]
[Site "Reykjavik"]
[Date "2025.04.10"]
[Round "2.7"]
[White "Gupta, Abhijeet"]
[Black "Bjornsson, Sigurbjorn"]
[Result "1-0"]
[Annotator "TA"]
[ECO "E04"]
[WhiteElo "2576"]
[BlackElo "2303"]
[PlyCount "103"]
[EventDate "2025.04.09"]
[EventType "swiss"]
[EventCountry "ISL"]
[SourceTitle "playchess.com"]
[Source "ChessBase"]
[SourceQuality "1"]
[TimeControl "40/5400+30:1800+30"]

{[%evp 12,103,49,43,62,55,54,30,35,23,43,30,31,18,45,23,52,48,46,51,52,27,29,29,41,2,14,0,0,0,7,-39,-57,-106,-103,-100,-113,-83,-22,-12,-22,-11,-18,-20,-9,-38,-22,-32,-40,-32,0,0,0,0,0,0,0,0,2,0,0,0,0,0,0,0,124,168,158,155,168,173,173,188,172,126,652,647,1634,1613,29968,29959,29960,29970,29978,29979,29979,29980,29976,29979,29979,29979,29983,29984]} 1. d4 {[%emt 0:00:01]} Nf6 {[%emt 0:00:45]} 2. c4 {[%emt 0:00:07]} e6 {[%emt 0:00:48]} 3. Nf3 {[%emt 0:02:31]} d5 {[%emt 0:00:25]} 4. g3 {[%emt 0:00:22]} Nbd7 {[%emt 0:00:31]} 5. Bg2 {[%emt 0:00:26]} dxc4 {[%emt 0:00:52]} 6. O-O {[%emt 0:01:27]} Rb8 {[%emt 0:00:34]} 7. a4 {[%emt 0:01:12]} a6 {[%emt 0:00:46] E04: Open Catalan: 5 Nf3.} 8. a5 {[%emt 0:03:54]} Bd6 {[%emt 0:00:50]} 9. Nfd2 $5 {[%emt 0:05:01][%mdl 4] An interesting side line.} b5 {[%emt 0:02:44] White has an edge.} 10. axb6 {[%emt 0:02:12]} Nxb6 {[%emt 0:00:14] [#]} 11. Nxc4 $1 {[%emt 0:00:34]} Nxc4 {[%emt 0:03:59]} 12. Qa4+ {[%emt 0:00:04]} Rb5 $146 {[%emt 0:01:12]} (12... Bd7 13. Qxc4 O-O 14. Qc2 Bb5 15. Nc3 Nd5 16. Nxb5 axb5 17. Bd2 Qd7 18. Rfc1 Rfc8 {½-½ Ciorgovean,I (2267)-Kanyamarala,T (2389) EU-ch 25th Eforie Nord 2025 (8)}) 13. Bc6+ {[%emt 0:02:15]} Nd7 {[%emt 0:04:55]} 14. Qxc4 {[%emt 0:00:21] A sharp opening} Rb4 {[%emt 0:00:46]} 15. Qc3 {[%emt 0:02:42]} O-O {[%emt 0:01:19]} 16. Bf4 {[%emt 0:00:16]} Nb6 {[%emt 0:03:24]} 17. Nd2 {[%emt 0:02:26] Repels Rc4} Be7 {[%emt 0:13:31]} 18. Rfd1 {[%emt 0:09:41]} Nd5 {[%emt 0:03:48]} 19. Bxd5 {[%emt 0:01:58]} Qxd5 {[%emt 0:00:06]} 20. Qxc7 {[%emt 0:04:36]} (20. Bxc7 Bb7 (20... Rxd4 21. Ra5 $11) 21. e4 Qd7 $17 (21... Qxd4 22. Ba5 $11)) 20... Bb7 $132 {[%emt 0:05:12][%mdl 2048] Black has counterplay} 21. Nf3 {[%emt 0:01:33]} (21. Qxe7 $2 Qh1#) (21. e4 $11 {feels stronger.} Qd8 22. Rac1) 21... Bf6 $15 {[%emt 0:11:21][%cal Of8c8]} 22. Bd6 {[%emt 0:05:09]} (22. Qc5 $15 Rxb2 23. Qxd5 Bxd5 24. Rxa6) 22... Rc8 $17 {[%emt 0:05:07]} 23. Qxc8+ {[%emt 0:02:16]} Bxc8 {[%emt 0:00:05] This pair of bishops is nice.} 24. Bxb4 {[%emt 0:00:03]} Bb7 {[%emt 0:00:46]} (24... Qb5 $1 $17 {[%cal Rb5b4]} 25. Bc3 Qxe2) 25. Re1 $11 {[%emt 0:08:40]} Qe4 $1 {[%emt 0:02:02][%cal Og7g5][%mdl 1024] Black has compensation.} (25... Bxd4 26. Rad1 (26. e4 Qb5 $15) 26... e5 27. Bc3 $14) 26. Ra3 {[%emt 0:03:53]} g5 {[%emt 0:03:25][%cal Og5g4]} 27. Re3 {[%emt 0:00:16]} Qd5 {[%emt 0:01:10][%cal Og5g4]} 28. g4 {[%emt 0:00:39]} h5 {[%emt 0:03:09]} (28... Bxd4 $2 {too greedy.} 29. Rd1 $18) 29. h3 {[%emt 0:01:33]} hxg4 {[%emt 0:01:09]} ({Inferior is} 29... Bxd4 30. Rd1 e5 31. Rxe5 Bxf2+ 32. Kxf2 $16) 30. hxg4 {[%emt 0:00:04]} Bxd4 {[%emt 0:15:00]} 31. Rd1 $1 {[%emt 0:12:27]} e5 {[%emt 0:00:27]} 32. Rxe5 {[%emt 0:10:35]} Bxf2+ $1 {[%emt 0:00:19]} 33. Kxf2 {[%emt 0:00:03]} Qxd1 {[%emt 0:00:07]} 34. Rxg5+ {[%emt 0:00:03]} Kh7 {[%emt 0:00:12]} 35. Rh5+ {[%emt 0:00:06]} Kg6 {[%emt 0:03:36]} 36. Ne5+ {[%emt 0:01:53]} Kf6 {[%emt 0:05:24] and ...Qd4+ should not be overlooked} 37. Rf5+ {[%emt 0:00:15]} Ke6 {[%emt 0:00:13]} 38. Nd3 {[%emt 0:00:04] Dancing on a razor blade.} Bh1 {[%emt 0:06:23] [#]} (38... Bc6 $11) 39. Rc5 $1 $16 {[%emt 0:02:59]} a5 {[%emt 0:02:41][%cal Ba6a5,Ba5b4,Bb4b3][%mdl 32] [#]} 40. Rc1 $1 {[%emt 0:09:33]} Qxc1 {[%emt 0:00:12]} 41. Nxc1 {[%emt 0:30:02]} axb4 {[%emt 0:30:06][%mdl 4096] Endgame KB-KN. White is a pawn up.} 42. Nd3 {[%emt 0:00:03]} b3 {[%emt 0:00:45]} 43. Ke3 {[%emt 0:02:09]} (43. Kg3 $18) 43... Kd5 $2 {[%emt 0:00:00][%mdl 8192] Prevents Nc5. Loses the game.} (43... Kf6 $16 44. Kf4 Bb7 45. g5+ Kg6) 44. Kf4 $18 {[%emt 0:00:00]} Kd4 {[%emt 0:00:00]} 45. Ne5 {[%emt 0:00:00][%cal Og4g5] g5! is the strong threat.} Bd5 {[%emt 0:00:00]} 46. e3+ {[%emt 0:00:00] White mates.} Kc5 {[%emt 0:00:00]} 47. Kf5 {[%emt 0:00:00]} f6 {[%emt 0:00:00]} 48. Kxf6 {[%emt 0:00:00]} Bg8 {[%emt 0:00:00]} 49. Nd3+ {[%emt 0:00:00]} Kd5 {[%emt 0:00:00]} 50. Kg7 {[%emt 0:00:00]} Ke4 {[%emt 0:00:00]} 51. Nc5+ {[%emt 0:00:00]} Kxe3 {[%emt 0:00:00]} 52. Kxg8 {[%emt 0:00:00] Weighted Error Value: White=0.06 (flawless) /Black=0.39  Loses game:     	---       	Black=1      Mistake:       	White=3     	Black=2      Inaccurate:     	White=1     	Black=4      OK:         	White=15    	Black=17     Best:        	White=5     	Black=4      Strong:       	White=3     	Black=2} 1-0

[Event "Reykjavik Open 2025"]
[Site "Reykjavik"]
[Date "2025.04.10"]
[Round "2.8"]
[White "Pisk, Petr"]
[Black "Jacobson, Brandon"]
[Result "0-1"]
[Annotator "TA"]
[ECO "B13"]
[WhiteElo "2302"]
[BlackElo "2570"]
[PlyCount "70"]
[EventDate "2025.04.09"]
[EventType "swiss"]
[EventCountry "ISL"]
[SourceTitle "playchess.com"]
[Source "ChessBase"]
[SourceQuality "1"]
[TimeControl "40/5400+30:1800+30"]

{[%evp 11,70,15,19,12,17,0,0,0,0,0,8,5,3,0,0,-3,9,0,6,0,0,0,11,19,16,0,-2,-157,-159,-162,-156,-153,-148,-221,-224,-264,-264,-260,-240,-276,-263,-714,-722,-661,-701,-766,-779,-745,-790,-791,-797,-795,-756,-768,-774,-772,-766,-766,-755,-705,-694]} 1. e4 {[%emt 0:00:30]} c6 {[%emt 0:04:59]} 2. d4 {[%emt 0:01:26]} d5 {[%emt 0:00:08]} 3. exd5 {[%emt 0:02:25]} cxd5 {[%emt 0:00:07]} 4. Bd3 {[%emt 0:00:23]} Nc6 {[%emt 0:00:32]} 5. c3 {[%emt 0:00:30]} Qc7 {[%emt 0:00:39]} 6. Ne2 {[%emt 0:08:36]} Bg4 {[%emt 0:00:29]} 7. O-O {[%emt 0:02:32] B13: Caro-Kann: Exchange Variation and Panov-Botvinnik Attack.} e6 {[%emt 0:00:34]} 8. f3 {[%emt 0:00:46]} Bh5 {[%emt 0:00:42]} 9. Bf4 {[%emt 0:00:29] The position is equal.} Qd7 {[%emt 0:04:21]} 10. Nd2 {[%emt 0:05:22][%cal Bb1d2,Bd2b3,Bb3c5][%mdl 32]} Bg6 {[%emt 0:00:24]} 11. Nb3 {[%emt 0:01:46]} Nf6 {[%emt 0:00:08]} 12. Ng3 {[%emt 0:03:58]} Bxd3 {[%emt 0:06:44]} 13. Qxd3 {[%emt 0:00:47]} h5 $146 {[%emt 0:00:41]} (13... Bd6 14. Bxd6 Qxd6 15. Rae1 O-O 16. f4 g6 17. Qf3 Ne7 18. Nc5 b6 19. Nd3 Nf5 {1-0 Bagvilas,L (1881)-Arulis,A (1958) LTU-chT Lithuania 2019 (2.5)}) 14. h3 {[%emt 0:02:59]} Ne7 {[%emt 0:35:05]} 15. Nc5 {[%emt 0:05:14]} Qc6 {[%emt 0:01:26]} 16. Rfe1 {[%emt 0:00:28]} b6 {[%emt 0:03:03]} 17. Na6 {[%emt 0:03:46]} Rc8 {[%emt 0:00:05] Against Nc7+} 18. a4 {[%emt 0:28:07]} Ng6 {[%emt 0:02:05]} 19. Bb8 {[%emt 0:08:24] [#] Black converts the advantage convincingly.} (19. Bd2 $11) 19... Nd7 $1 $17 {[%emt 0:08:19]} 20. Be5 {[%emt 0:08:06]} Ndxe5 {[%emt 0:01:41]} 21. dxe5 {[%emt 0:00:08]} h4 $36 {[%emt 0:00:08][%mdl 2048] Black has strong initiative.} 22. Nh1 {[%emt 0:05:46]} (22. Ne2 $17) 22... Rh5 $19 {[%emt 0:00:44]} 23. Qd4 {[%emt 0:00:02]} Qb7 {[%emt 0:01:43]} 24. Qd3 {[%emt 0:01:07]} Rc4 {[%emt 0:01:08]} 25. b3 {[%emt 0:00:52]} Rg5 {[%emt 0:06:11]} (25... Nxe5 26. Qe2 Rf4 (26... Rxc3 $2 27. f4 $19) 27. Nf2 $19) 26. bxc4 $2 {[%emt 0:01:22] [#]} (26. Qd2 Rf4 (26... Rxe5 $2 27. bxc4 Rxe1+ 28. Rxe1 $18) (26... Nf4 27. g4 $15) 27. Qe2) 26... Rxg2+ $3 {[%emt 0:00:04][%mdl 512] Black is clearly winning.} 27. Kf1 {[%emt 0:04:53]} Qxa6 {[%emt 0:00:06]} 28. Rad1 {[%emt 0:00:05] [#]} Bc5 $1 {[%emt 0:00:30] and ...Nf4 should not be overlooked} 29. Kxg2 {[%emt 0:01:18]} Nf4+ {[%emt 0:00:05]} ({And not} 29... dxc4 30. Qd8#) 30. Kf1 {[%emt 0:00:17]} Nxd3 {[%emt 0:00:06]} 31. Rxd3 {[%emt 0:00:03]} Qxc4 {[%emt 0:00:09]} (31... dxc4 $2 32. Rd2 $19) 32. Ke2 {[%emt 0:01:16]} Qf4 {[%emt 0:00:15]} 33. Nf2 {[%emt 0:00:31]} Qh2 {[%emt 0:01:09]} 34. Rf1 {[%emt 0:00:04]} Qxe5+ {[%emt 0:00:05]} 35. Kd1 {[%emt 0:00:20]} Qf4 {[%emt 0:00:27] Weighted Error Value: White=0.37/Black=0.03 (flawless)   Mistake:       	White=3     	---        OK:         	White=6     	Black=14     Best:        	---       	Black=1      Strong:       	---       	Black=1      Brilliant:      	---       	Black=1} 0-1

[Event "Reykjavik Open 2025"]
[Site "Reykjavik"]
[Date "2025.04.10"]
[Round "2.9"]
[White "Gorshtein, Ido"]
[Black "Bhagat Kush"]
[Result "1-0"]
[Annotator "TA"]
[ECO "E93"]
[WhiteElo "2557"]
[BlackElo "2301"]
[PlyCount "109"]
[EventDate "2025.04.09"]
[EventType "swiss"]
[EventCountry "ISL"]
[SourceTitle "playchess.com"]
[Source "ChessBase"]
[SourceQuality "1"]
[TimeControl "40/5400+30:1800+30"]

{[%evp 18,109,42,39,44,48,55,61,51,52,67,65,64,57,85,74,74,64,73,77,71,73,103,0,89,59,72,77,105,100,98,91,97,97,107,77,147,97,103,103,108,100,100,112,97,70,123,122,73,69,110,46,128,128,446,449,410,402,449,345,494,539,433,533,570,502,570,531,493,566,559,552,907,907,742,703,1110,1064,2024,1828,1861,1835,1814,1808,29972,29971,29980,29981,29981,29982,29982,29983,29979,10375]} 1. d4 {[%emt 0:00:02]} Nf6 {[%emt 0:10:46]} 2. c4 {[%emt 0:00:07]} g6 {[%emt 0:00:22]} 3. Nc3 {[%emt 0:00:07]} Bg7 {[%emt 0:00:04]} 4. e4 {[%emt 0:00:04]} d6 {[%emt 0:00:06]} 5. h3 {[%emt 0:00:05]} O-O {[%emt 0:00:21]} 6. Be3 {[%emt 0:00:05]} Nbd7 {[%emt 0:00:29]} 7. Qc2 {[%emt 0:00:19]} e5 {[%emt 0:02:59]} 8. d5 {[%emt 0:00:07]} a5 {[%emt 0:01:59]} 9. Nf3 {[%emt 0:05:18]} Nc5 {[%emt 0:00:21]} 10. Be2 {[%emt 0:02:41]} Nh5 {[%emt 0:14:58]} 11. Bxc5 {[%emt 0:00:08]} dxc5 {[%emt 0:00:11]} 12. O-O-O {[%emt 0:00:09]} Nf4 {[%emt 0:09:44] White is slightly better.} 13. Bf1 {[%emt 0:00:09]} f5 {[%emt 0:01:03]} 14. Kb1 {[%emt 0:00:12]} Qe7 {[%emt 0:04:57]} 15. Nd2 {[%emt 0:08:01]} Ra6 {[%emt 0:02:15]} 16. h4 {[%emt 0:02:45]} Bd7 {[%emt 0:05:36]} 17. Re1 {[%emt 0:16:50]} Nh5 {[%emt 0:02:33]} 18. Be2 {[%emt 0:01:48]} f4 {[%emt 0:04:25]} 19. Nb5 {[%emt 0:06:02]} Bc8 {[%emt 0:05:48]} 20. Nc3 {[%emt 0:06:18]} Bd7 $1 {[%emt 0:01:23]} 21. Nf3 {[%emt 0:05:23][%cal Bd2f3,Bf3e1,Be1d3][%mdl 32]} h6 {[%emt 0:02:11]} 22. Reg1 {[%emt 0:02:45]} Raf6 {[%emt 0:16:20]} 23. Ne1 {[%emt 0:02:29]} b6 {[%emt 0:01:39]} 24. Qd1 {[%emt 0:00:43]} Qf7 {[%emt 0:01:31]} 25. Bg4 {[%emt 0:01:27]} Rd6 {[%emt 0:00:26]} 26. Nd3 {[%emt 0:01:35]} Re8 {[%emt 0:02:37]} (26... Bxg4 $142 27. Qxg4 Qe7) 27. Bxd7 {[%emt 0:05:53]} (27. Bxh5 $142 gxh5 28. g3) 27... Rxd7 {[%emt 0:00:07]} 28. g4 {[%emt 0:02:13]} fxg3 {[%emt 0:02:58]} 29. fxg3 {[%emt 0:00:07][%cal Bf2g3,Bg3g4,Bg4g5][%mdl 32]} Rf8 {[%emt 0:01:11]} 30. g4 {[%emt 0:06:31]} Nf4 {[%emt 0:00:17]} 31. g5 {[%emt 0:08:14] [#] aiming for gxh6.} Nxd3 {[%emt 0:00:31]} ({Better is} 31... h5 $14) 32. Qxd3 $16 {[%emt 0:00:09][%cal Oh4h5]} h5 {[%emt 0:00:05]} 33. Qh3 $36 {[%emt 0:05:15][%mdl 2048] White is pushing.} Qe8 {[%emt 0:01:00] [#]} 34. Rf1 {[%emt 0:01:23]} (34. Qe6+ $1 $16 Qxe6 35. dxe6) 34... Rxf1+ {[%emt 0:01:25]} (34... Rf4 $1 $14) 35. Rxf1 {[%emt 0:00:06]} Rf7 $2 {[%emt 0:00:04][%mdl 8192] Black is weak on the light squares. A mistake that costs the game.} (35... Re7 $16 36. Rd1 Qd8) 36. Rxf7 $18 {[%emt 0:05:49]} Qxf7 {[%emt 0:00:20][%mdl 4096] Endgame KQB-KQN} 37. Qe6 {[%emt 0:01:15]} ({Not} 37. Qc8+ Kh7 $16) 37... Bf8 {[%emt 0:00:42]} 38. Qxf7+ {[%emt 0:01:22]} (38. Qxe5 Bd6 (38... Bg7 39. Qe6 $17) 39. Qe6 Qxe6 40. dxe6 Bg3 $19) 38... Kxf7 {[%emt 0:00:02] KB-KN} 39. Nb5 {[%emt 0:01:27]} Be7 {[%emt 0:01:45]} 40. Kc2 {[%emt 0:00:54]} (40. Nxc7 $2 Bxg5 41. Kc2 (41. hxg5 $2 {too greedy.} h4 $19) 41... Bxh4 $19) 40... Bd8 {[%emt 0:01:07]} 41. Kd3 {[%emt 0:33:16]} Ke8 {[%emt 0:33:28]} 42. Na7 {[%emt 0:00:00]} Be7 {[%emt 0:00:00]} 43. Nc6 {[%emt 0:00:00]} Bd6 {[%emt 0:00:00]} 44. Kc2 {[%emt 0:00:00]} a4 {[%emt 0:00:00]} 45. a3 {[%emt 0:00:00]} Kd7 {[%emt 0:00:00]} 46. b3 {[%emt 0:00:00][%cal Bb2b3,Bb3a4][%mdl 32]} Kc8 {[%emt 0:00:00]} 47. bxa4 {[%emt 0:00:00]} Kb7 {[%emt 0:00:00]} 48. Kb2 {[%emt 0:00:00]} Ka6 {[%emt 0:00:00]} 49. Kb3 {[%emt 0:00:00]} Kb7 {[%emt 0:00:00]} 50. a5 {[%emt 0:00:00]} bxa5 {[%emt 0:00:00]} 51. Nxa5+ {[%emt 0:00:00] White mates.} Ka6 {[%emt 0:00:00]} 52. Nc6 {[%emt 0:00:00]} Kb6 {[%emt 0:00:00]} 53. a4 {[%emt 0:00:00][%cal Ba3a4,Ba4a5][%mdl 32]} Ka6 {[%emt 0:00:00]} 54. a5 {[%emt 0:00:00]} Kb7 {[%emt 0:00:00]} 55. Ka3 {[%emt 0:00:00] Weighted Error Value: White=0.12 (very precise) /Black=0.63  Loses game:     	---       	Black=1      Mistake:       	White=2     	Black=3      Inaccurate:     	White=1     	Black=6      OK:         	White=14    	Black=11     Best:        	White=5     	Black=2      Strong:       	---       	Black=1} 1-0

[Event "Reykjavik Open 2025"]
[Site "Reykjavik"]
[Date "2025.04.10"]
[Round "2.10"]
[White "Llari, Marc"]
[Black "Maze, Sebastien"]
[Result "1/2-1/2"]
[Annotator "TA"]
[ECO "B15"]
[WhiteElo "2299"]
[BlackElo "2557"]
[PlyCount "56"]
[EventDate "2025.04.09"]
[EventType "swiss"]
[EventCountry "ISL"]
[SourceTitle "playchess.com"]
[Source "ChessBase"]
[SourceQuality "1"]
[TimeControl "40/5400+30:1800+30"]

{[%evp 15,56,21,20,16,26,14,29,25,46,44,54,25,25,29,39,42,34,0,0,0,0,0,4,0,2,0,3,0,15,0,21,0,5,-11,23,13,5,4,18,18,23,21,62]} 1. e4 {[%emt 0:00:03]} c6 {[%emt 0:00:04]} 2. d4 {[%emt 0:00:07]} d5 {[%emt 0:00:03]} 3. Nc3 {[%emt 0:00:18]} dxe4 {[%emt 0:00:05]} 4. Nxe4 {[%emt 0:00:09]} Nf6 {[%emt 0:00:02]} 5. Nxf6+ {[%emt 0:00:12]} exf6 {[%emt 0:00:03]} 6. c3 {[%emt 0:00:09]} Bd6 {[%emt 0:00:06]} 7. Bd3 {[%emt 0:00:08]} O-O {[%emt 0:00:28]} 8. Ne2 {[%emt 0:00:06][%cal Bg1e2,Be2g3,Bg3e4,Be4g5][%mdl 32]} Re8 {[%emt 0:00:23]} 9. O-O {[%emt 0:00:12] B15: Caro-Kann: 3 Nc3: 3...g6 and 3...dxe4 4 Nxe4 Nf6 5 Nxf6+ exf6.} Nd7 {[%emt 0:00:19][%cal Bb8d7,Bd7f6,Bf6d5][%mdl 32]} 10. Ng3 $1 {[%emt 0:00:23] The main line 10.Ng3 scores better than 10.Bf4.} g6 {[%emt 0:01:22]} 11. Ne4 {[%emt 0:04:19] White has an edge.} Bc7 $146 {[%emt 0:03:42][%cal Oh7h6]} (11... Be7 12. Re1 Nf8 13. Bh6 Ne6 14. Bc4 Bd7 15. b4 b6 16. d5 cxd5 17. Qxd5 Qc7 {½-½ Yu,Y (2735)-Keymer,V (2690) Biel Rapid 56th 2023 (4)}) 12. Re1 {[%emt 0:05:17]} Re7 {[%emt 0:21:21]} 13. g3 {[%emt 0:25:10]} f5 {[%emt 0:14:36]} 14. Ng5 {[%emt 0:02:22]} Nf6 {[%emt 0:07:29]} 15. Rxe7 {[%emt 0:04:29]} Qxe7 {[%emt 0:00:02]} 16. Qe2 {[%emt 0:00:09]} Qxe2 {[%emt 0:01:10]} 17. Bxe2 {[%emt 0:00:11]} Bd7 {[%emt 0:04:27]} 18. Bc4 {[%emt 0:01:00]} Nd5 {[%emt 0:02:34]} 19. Bd2 {[%emt 0:02:10]} f6 {[%emt 0:00:51]} 20. Nf3 {[%emt 0:00:20]} Be6 {[%emt 0:01:06]} 21. Ne1 {[%emt 0:01:20]} Bf7 {[%emt 0:08:46]} 22. Nd3 {[%emt 0:00:37]} Rd8 {[%emt 0:00:16]} 23. Re1 {[%emt 0:00:57]} Bd6 {[%emt 0:00:31]} 24. h4 {[%emt 0:03:00][%cal Bh2h4,Bh4h5][%mdl 32]} Kg7 {[%emt 0:00:53][%cal Od5b4]} 25. Bb3 {[%emt 0:04:00]} Rd7 {[%emt 0:03:14]} 26. Bc2 {[%emt 0:09:57]} h6 {[%emt 0:04:28]} 27. a4 {[%emt 0:03:59]} a5 {[%emt 0:08:38] [#]} 28. h5 $1 {[%emt 0:09:35]} f4 {[%emt 0:05:32] Weighted Error Value: White=0.07 (flawless) /Black=0.07 (flawless)   Inaccurate:     	White=2     	Black=2      OK:         	White=9     	Black=6} (28... g5 29. Nc5) 1/2-1/2